[Event "Moscow Youth U19 2019"]
[Site "Moscow"]
[Date "2019.11.20"]
[Round "3.7"]
[White "Kozhukhov, Alexandr"]
[Black "Zavialov, Nikita A."]
[Result "0-1"]
[ECO "A04"]
[WhiteElo "1627"]
[BlackElo "2066"]
[Annotator "NA"]
[PlyCount "102"]
[EventDate "2019.11.18"]
[EventType "swiss"]
[EventCountry "RUS"]
[SourceTitle "playchess.com"]
[Source "ChessBase"]
[SourceQuality "1"]
[TimeControl "5400+30"]

1. d4 {[%emt 0:05:43]} Nf6 {[%emt 0:06:00]} 2. Nf3 {[%emt 0:00:16]} g6 {[%emt 0:00:06]} 3. c4 {[%emt 0:00:17]} c5 {[%emt 0:00:07]} 4. g3 {[%emt 0:01:15]} cxd4 {[%emt 0:00:39]} 5. Nxd4 {[%emt 0:00:24]} Nc6 {[%emt 0:00:23]} 6. Nxc6 {[%emt 0:04:17]} bxc6 {[%emt 0:00:57]} 7. Bg2 {[%emt 0:00:15]} Bg7 {[%emt 0:03:15]} 8. O-O {[%emt 0:01:03]} O-O {[%emt 0:01:49]} 9. Nc3 {[%emt 0:02:21]} Qc7 {[%emt 0:01:36] A04: Unusual lines after 1 Nf3 and King's Indian Attack} (9... Rb8 10. Qa4 Qb6 11. Rb1 Qa6 12. Qxa6 Bxa6 13. b3 d5 14. Ba3 dxc4 15. bxc4 Bxc4 16. Bxe7 Rxb1 17. Rxb1 Re8 {½-½ (32) Marin,M (2576)-Kovalenko,I (2668) Almaty 2016}) 10. Bf4 {[%emt 0:06:42]} e5 $146 {[%emt 0:00:59]} ({Predecessor:} 10... Qb6 11. Qd2 d6 12. Rac1 Be6 13. c5 Qxc5 14. Nd5 cxd5 15. Rxc5 dxc5 16. b3 a5 17. Be5 {½-½ (32) Muse,M (2383)-Sroczynski,M (2303) Germany 2016}) 11. Bg5 {[%emt 0:03:37]} Rb8 {[%emt 0:01:35]} 12. b3 {[%emt 0:06:04]} d6 {[%emt 0:02:44]} 13. Qc2 {[%emt 0:09:47]} Be6 {[%emt 0:19:46]} 14. e4 {[%emt 0:04:08]} h6 {[%emt 0:07:51]} 15. Bxf6 {[%emt 0:05:44]} Bxf6 {[%emt 0:00:05]} 16. Rad1 {[%emt 0:00:17]} Bg7 {[%emt 0:06:51]} 17. Rd2 {[%emt 0:03:04]} Rbd8 {[%emt 0:01:01]} 18. h3 {[%emt 0:03:47]} f5 {[%emt 0:02:10]} 19. c5 {[%emt 0:09:17]} dxc5 {[%emt 0:01:04]} 20. Rfd1 {[%emt 0:05:52]} Rd4 {[%emt 0:11:40]} (20... f4 $17 21. Na4 fxg3 22. fxg3 {[#]} c4 $1 {[%mdl 512]}) 21. Ne2 {[%emt 0:01:58]} Rxd2 {[%emt 0:03:32]} 22. Qxd2 {[%emt 0:01:40]} c4 {[%emt 0:00:52]} 23. b4 {[%emt 0:10:04]} (23. exf5 $11 gxf5 24. bxc4) 23... c5 {[%emt 0:02:50]} 24. b5 {[%emt 0:00:35]} Kh7 {[%emt 0:03:28]} 25. Qd6 {[%emt 0:02:36]} Qc8 {[%emt 0:03:00]} 26. Nc3 {[%emt 0:01:26]} f4 {[%emt 0:05:13]} 27. Qc6 {[%emt 0:07:11]} Bxh3 {[%emt 0:03:13]} 28. Qxc8 {[%emt 0:00:15]} Bxc8 {[%emt 0:00:16]} 29. Rd5 {[%emt 0:00:23]} fxg3 {[%emt 0:01:15]} 30. fxg3 {[%emt 0:00:05]} Be6 {[%emt 0:00:37]} 31. Rxc5 {[%emt 0:00:03]} Rc8 $11 {[%emt 0:01:20]} 32. Rxc8 {[%emt 0:01:37]} Bxc8 {[%emt 0:00:04]} 33. Bf1 {[%emt 0:01:28]} Be6 {[%emt 0:00:02]} 34. Kf2 {[%emt 0:01:30]} Bf8 {[%emt 0:00:37]} 35. Nd5 {[%emt 0:00:23]} Bc5+ {[%emt 0:10:33]} 36. Kf3 {[%emt 0:00:43]} Bxd5 {[%emt 0:00:00]} 37. exd5 {[%emt 0:00:04]} c3 {[%emt 0:00:00]} 38. Bd3 {[%emt 0:00:10]} Kg7 {[%emt 0:00:00]} 39. a4 {[%emt 0:00:25]} Kf6 {[%emt 0:00:00]} 40. g4 {[%emt 0:01:47]} h5 {[%emt 0:00:00]} 41. gxh5 {[%emt 0:00:21]} gxh5 {[%emt 0:00:00]} 42. a5 {[%emt 0:01:26]} Bb4 {[%emt 0:00:04]} 43. a6 {[%emt 0:00:12]} Ba5 {[%emt 0:00:38]} 44. Bc2 {[%emt 0:00:44]} Kg5 {[%emt 0:01:31]} 45. Bd3 {[%emt 0:00:37]} Bd8 {[%emt 0:00:48]} 46. Ke4 {[%emt 0:00:32]} Kg4 {[%emt 0:00:55]} 47. Kxe5 {[%emt 0:00:26]} Bb6 {[%emt 0:00:58]} 48. d6 {[%emt 0:00:34]} h4 {[%emt 0:00:13]} 49. d7 {[%emt 0:00:33]} h3 {[%emt 0:00:18]} 50. Kd6 {[%emt 0:00:31]} h2 {[%emt 0:02:05]} 51. Be4 {[%emt 0:00:04]} c2 {[%emt 0:00:30] Kc7} 0-1

[Event "Moscow Youth U19 2019"]
[Site "Moscow"]
[Date "2019.11.20"]
[Round "3.8"]
[White "Shlykov, Yaroslav"]
[Black "Rysaev, Danial"]
[Result "0-1"]
[ECO "C02"]
[WhiteElo "1623"]
[BlackElo "2029"]
[Annotator "NA"]
[PlyCount "77"]
[EventDate "2019.11.18"]
[EventType "swiss"]
[EventCountry "RUS"]
[SourceTitle "playchess.com"]
[Source "ChessBase"]
[SourceQuality "1"]
[TimeControl "5400+30"]

1. e4 {[%emt 0:00:00]} e6 {[%emt 0:02:30]} 2. d4 {[%emt 0:00:00]} d5 {[%emt 0:00:06]} 3. e5 {[%emt 0:00:00]} c5 {[%emt 0:00:05]} 4. c3 {[%emt 0:00:00]} Qb6 {[%emt 0:00:05]} 5. Nf3 {[%emt 0:00:00]} Nc6 {[%emt 0:00:06]} 6. a3 {[%emt 0:00:00]} Nh6 {[%emt 0:00:05]} 7. b4 {[%emt 0:00:24]} cxd4 {[%emt 0:00:06]} 8. cxd4 {[%emt 0:00:04]} Nf5 {[%emt 0:00:07]} 9. Be3 {[%emt 0:00:28]} f6 {[%emt 0:00:06]} 10. exf6 {[%emt 0:01:36] C02: French: Advance Variation} gxf6 {[%emt 0:00:03]} 11. Nc3 {[%emt 0:01:14]} Nxe3 {[%emt 0:02:43]} 12. fxe3 {[%emt 0:00:06]} Bh6 {[%emt 0:03:13]} 13. Qd3 {[%emt 0:04:02]} (13. e4 dxe4 14. Nxe4 O-O 15. Bc4 Kh8 16. Qd3 f5 17. Nc5 Bg7 {1-0 (58) Savchenko,B (2599)-Vitiugov,N (2738) Wroclaw 2014}) 13... Ne7 {[%emt 0:05:36]} 14. e4 {[%emt 0:16:08]} dxe4 {[%emt 0:05:03]} 15. Qxe4 $146 {[%emt 0:01:25]} ({Predecessor:} 15. Nxe4 Bg7 16. Qb5+ Qxb5 17. Bxb5+ Kd8 18. O-O Nd5 19. Rae1 Ke7 20. Bc4 Rd8 21. Ng3 Rd6 22. Nf5+ {1-0 (22) Anton Quevedo,A (1979)-Aragon Lopez,H (1447) Madrid 2016}) 15... Bd7 {[%emt 0:03:35]} 16. Qh4 {[%emt 0:15:01]} Qc6 {[%emt 0:08:39]} 17. Ne2 {[%emt 0:09:13]} Nf5 {[%emt 0:03:38]} 18. Qh5+ {[%emt 0:05:40]} Ke7 {[%emt 0:00:27]} 19. d5 {[%emt 0:00:32]} Qxd5 {[%emt 0:01:30]} 20. Rd1 {[%emt 0:00:19]} Qe4 {[%emt 0:02:21]} 21. Nfd4 {[%emt 0:06:45]} Qh4+ {[%emt 0:01:22]} 22. Qxh4 {[%emt 0:00:05]} Nxh4 {[%emt 0:00:01]} 23. g3 {[%emt 0:00:09]} Ng6 {[%emt 0:00:54]} 24. Bg2 {[%emt 0:00:23]} Ba4 {[%emt 0:00:10]} 25. Rd3 {[%emt 0:03:04]} Rac8 {[%emt 0:00:07]} 26. Bxb7 {[%emt 0:05:14] [#]} Rc7 $1 {[%emt 0:00:08]} 27. Be4 {[%emt 0:01:21]} Rhc8 {[%emt 0:00:07]} 28. b5 {[%emt 0:01:59]} Ne5 {[%emt 0:00:36]} 29. Nc6+ {[%emt 0:07:56]} Rxc6 {[%emt 0:00:02]} ({Weaker is} 29... Nxc6 30. bxc6 f5 31. Bg2 $17) 30. bxc6 {[%emt 0:00:24]} Nxd3+ {[%emt 0:00:02]} 31. Bxd3 {[%emt 0:00:07]} Bxc6 {[%emt 0:00:23]} 32. Rf1 {[%emt 0:00:15]} e5 {[%emt 0:00:48]} 33. Bxh7 {[%emt 0:00:26]} Be3 {[%emt 0:00:11]} 34. Rf5 {[%emt 0:02:29]} Rb8 {[%emt 0:02:02]} 35. Nc3 $19 {[%emt 0:13:41]} Bd4 {[%emt 0:00:10]} 36. Ne2 {[%emt 0:00:50]} Rb1+ {[%emt 0:00:05]} 37. Kd2 {[%emt 0:00:08]} Rb2+ {[%emt 0:00:02]} 38. Ke1 {[%emt 0:00:37]} Be3 {[%emt 0:00:10]} 39. Rg5 {[%emt 0:00:53]} 0-1

[Event "Moscow Youth U19 2019"]
[Site "Moscow"]
[Date "2019.11.20"]
[Round "3.9"]
[White "Sauri, Georgy"]
[Black "Buniatyan, David"]
[Result "0-1"]
[ECO "B92"]
[WhiteElo "1494"]
[BlackElo "1960"]
[Annotator "NA"]
[PlyCount "50"]
[EventDate "2019.11.18"]
[EventType "swiss"]
[EventCountry "RUS"]
[SourceTitle "playchess.com"]
[Source "ChessBase"]
[SourceQuality "1"]
[TimeControl "5400+30"]

{[%evp 18,46,17,0,32767,32767,32767,32767,32767,-57,-50,-94,-79,32767,-83,-91,-92,-99,32767,32767,-95,-209,-154,-527,-539,-536,32767,32767,32767,-656,-687]} 1. e4 {[%emt 0:00:00]} c5 {[%emt 0:00:20]} 2. Nf3 {[%emt 0:00:00]} d6 {[%emt 0:00:51]} 3. d4 {[%emt 0:00:00]} cxd4 {[%emt 0:00:05]} 4. Nxd4 {[%emt 0:00:00]} Nf6 {[%emt 0:00:06]} 5. Nc3 {[%emt 0:00:00]} a6 {[%emt 0:00:30]} 6. Be2 {[%emt 0:00:21]} e5 {[%emt 0:00:27]} 7. Nb3 {[%emt 0:01:47]} Be7 {[%emt 0:00:30]} 8. O-O {[%emt 0:00:12]} Be6 {[%emt 0:00:58]} 9. Be3 {[%emt 0:01:00]} Nbd7 {[%emt 0:01:17]} 10. f3 {[%emt 0:02:40]} O-O {[%emt 0:01:30]} 11. Qd2 {[%emt 0:00:03]} b5 {[%emt 0:01:41]} 12. a3 {[%emt 0:03:16]} Rc8 {[%emt 0:01:19]} 13. Rad1 {[%emt 0:04:26] B92: Sicilian Najdorf: 6 Be2} ({Better is} 13. a4 $11) (13. Rfd1 Nb6 14. Nc1 d5 15. exd5 Nfxd5 16. Nxd5 Nxd5 17. Bf2 Qc7 18. c3 Bc5 19. Nd3 Bxf2+ 20. Nxf2 Qb6 {0-1 (35) Bjorgvik,J (1777)-Sand,R (1989) Bled 2018}) 13... Nb6 {[%emt 0:01:48]} 14. Qc1 $146 {[%emt 0:02:28]} ({Predecessor:} 14. Kh1 Nc4 {½-½ (14) Kubat,M (1881)-Vartazarian,G (1775) Klatovy 2018}) 14... d5 {[%emt 0:05:03]} 15. exd5 {[%emt 0:00:59]} Nbxd5 {[%emt 0:00:17]} 16. Nxd5 {[%emt 0:00:17]} Nxd5 {[%emt 0:00:14]} 17. Bd3 {[%emt 0:02:28]} Qc7 {[%emt 0:01:13]} 18. Kh1 {[%emt 0:05:20]} Rfd8 {[%emt 0:03:28]} 19. f4 {[%emt 0:08:05]} (19. Bd2 $17 {keeps fighting.}) 19... exf4 {[%emt 0:02:06]} 20. Bxf4 $2 {[%emt 0:01:03]} (20. Bd2 {is a better chance.}) 20... Nxf4 {[%emt 0:00:09]} 21. Qxf4 {[%emt 0:00:07]} Qxf4 {[%emt 0:00:26]} 22. Rxf4 {[%emt 0:00:06]} Bxb3 {[%emt 0:00:14]} 23. cxb3 {[%emt 0:05:49] [#]} Rxd3 $19 {[%emt 0:00:27]} 24. Rxd3 {[%emt 0:00:06]} Rc1+ {[%emt 0:00:09]} 25. Rf1 {[%emt 0:00:03]} Rxf1# {[%emt 0:00:05]} 0-1

[Event "Moscow Youth U19 2019"]
[Site "Moscow"]
[Date "2019.11.20"]
[Round "3.10"]
[White "Budnichenko, Vladimir"]
[Black "Beliuga, Mikhail"]
[Result "0-1"]
[ECO "B13"]
[WhiteElo "1489"]
[BlackElo "1816"]
[Annotator "NA"]
[PlyCount "82"]
[EventDate "2019.11.18"]
[EventType "swiss"]
[EventCountry "RUS"]
[SourceTitle "playchess.com"]
[Source "ChessBase"]
[SourceQuality "1"]
[TimeControl "5400+30"]

1. e4 {[%emt 0:00:00]} c6 {[%emt 0:01:04]} 2. d4 {[%emt 0:00:00]} d5 {[%emt 0:00:03]} 3. exd5 {[%emt 0:00:00]} cxd5 {[%emt 0:00:04]} 4. Nf3 {[%emt 0:00:00]} Nc6 {[%emt 0:00:07]} 5. Ne5 {[%emt 0:00:00]} Nxe5 {[%emt 0:03:29]} (5... Nf6 6. Bb5 Bd7 7. Nxd7 Qxd7 8. c3 e6 9. O-O Bd6 10. Nd2 Qc7 11. g3 h5 {½-½ (28) Shankland,S (2705)-Ding,L (2811) chess.com INT 2019}) 6. dxe5 {[%emt 0:00:00] B13: Caro-Kann: Exchange Variation and Panov-Botvinnik Attack} e6 {[%emt 0:00:06]} 7. Be3 {[%emt 0:00:27]} Ne7 {[%emt 0:10:25]} 8. Bd3 {[%emt 0:05:53]} Nc6 {[%emt 0:07:45]} 9. f4 {[%emt 0:02:56]} Bd7 $146 {[%emt 0:08:56]} ({Predecessor:} 9... Nb4 10. Be2 Be7 11. c3 Nc6 {½-½ (66) Ma,B (1985)-Kemeny,M (2011) Hamburg 2006}) 10. c3 {[%emt 0:04:19]} Rb8 {[%emt 0:07:58]} 11. O-O {[%emt 0:03:15]} Be7 {[%emt 0:00:15]} 12. Qh5 {[%emt 0:05:22]} g6 {[%emt 0:00:12]} 13. Qh6 {[%emt 0:02:29]} Bf8 {[%emt 0:25:41]} 14. Qh3 {[%emt 0:00:07]} b6 {[%emt 0:00:35]} 15. Kh1 {[%emt 0:04:24]} Bg7 {[%emt 0:01:32]} 16. Nd2 {[%emt 0:06:12]} O-O {[%emt 0:01:58]} 17. Nf3 {[%emt 0:04:02]} Qe7 {[%emt 0:28:20]} 18. Ng5 {[%emt 0:10:11]} h6 {[%emt 0:00:00]} 19. Nf3 {[%emt 0:00:05]} b5 {[%emt 0:00:00]} 20. b4 {[%emt 0:08:04]} Rfc8 {[%emt 0:00:00]} 21. Qg3 {[%emt 0:05:15]} a6 {[%emt 0:00:00]} 22. h4 {[%emt 0:04:22]} h5 {[%emt 0:00:00]} 23. Bc5 {[%emt 0:02:46]} Qe8 {[%emt 0:00:00]} 24. a3 {[%emt 0:07:13]} Bf8 {[%emt 0:00:00]} 25. Be3 {[%emt 0:04:32]} a5 {[%emt 0:00:00]} 26. Qh3 {[%emt 0:04:10]} Rc7 {[%emt 0:00:00]} 27. g4 {[%emt 0:00:37]} hxg4 {[%emt 0:00:43]} 28. Qxg4 {[%emt 0:00:05]} d4 {[%emt 0:01:40]} 29. Nxd4 {[%emt 0:00:33]} Nxd4 {[%emt 0:00:54]} 30. Bxd4 {[%emt 0:00:11]} axb4 {[%emt 0:01:25]} 31. axb4 {[%emt 0:00:11]} f5 $2 {[%emt 0:00:40]} (31... Bg7 32. Kh2 Qc8) 32. Qg3 $11 {[%emt 0:02:25]} (32. exf6 $18 e5 33. Qg5 Bc6+ 34. Kh2) 32... Bc6+ {[%emt 0:00:21]} 33. Kh2 {[%emt 0:00:22]} Rh7 {[%emt 0:00:12]} 34. Rg1 {[%emt 0:02:22]} Be7 {[%emt 0:00:09]} 35. Qxg6+ {[%emt 0:01:21]} Qxg6 {[%emt 0:00:05]} 36. Rxg6+ {[%emt 0:00:05]} Kf7 {[%emt 0:00:07]} 37. Bxf5 {[%emt 0:03:42]} Rxh4+ {[%emt 0:03:07]} 38. Kg3 {[%emt 0:00:18]} Bd5 {[%emt 0:00:33]} 39. Rg4 {[%emt 0:02:16]} exf5 {[%emt 0:00:27]} 40. Rxh4 {[%emt 0:00:09]} Rg8+ {[%emt 0:00:04]} 41. Kh2 {[%emt 0:00:39]} Bxh4 {[%emt 0:00:21]} 0-1

[Event "Moscow Youth U19 2019"]
[Site "Moscow"]
[Date "2019.11.21"]
[Round "4.1"]
[White "Makarian, Rudik"]
[Black "Vetokhin, Savva"]
[Result "1/2-1/2"]
[ECO "A14"]
[WhiteElo "2405"]
[BlackElo "2081"]
[Annotator "ChessBase"]
[PlyCount "132"]
[EventDate "2019.11.18"]
[EventType "swiss"]
[EventCountry "RUS"]
[SourceTitle "playchess.com"]
[Source "ChessBase"]
[SourceQuality "1"]
[TimeControl "5400+30"]

1. Nf3 {[%emt 0:00:00]} Nf6 {[%emt 0:00:00]} 2. c4 {[%emt 0:00:00]} e6 {[%emt 0:00:00]} 3. b3 {[%emt 0:00:00]} c5 {[%emt 0:01:28]} 4. Bb2 {[%emt 0:00:00]} Be7 {[%emt 0:00:09]} 5. g3 {[%emt 0:00:28]} O-O {[%emt 0:00:13]} 6. Bg2 {[%emt 0:00:03]} Nc6 {[%emt 0:00:13]} 7. O-O {[%emt 0:00:12]} d5 {[%emt 0:01:15]} 8. Ne5 {[%emt 0:11:11]} Nxe5 {[%emt 0:06:52]} 9. Bxe5 {[%emt 0:00:03]} b6 {[%emt 0:00:54]} 10. Nc3 {[%emt 0:28:49]} Bb7 {[%emt 0:01:38]} 11. Rc1 {[%emt 0:01:16]} Qd7 {[%emt 0:06:15]} 12. cxd5 {[%emt 0:13:53]} Nxd5 {[%emt 0:01:10]} 13. d3 {[%emt 0:03:06]} Bd6 {[%emt 0:02:04]} 14. Bxd6 {[%emt 0:02:10]} Qxd6 {[%emt 0:00:14]} 15. Nxd5 {[%emt 0:01:44]} Bxd5 {[%emt 0:00:09]} 16. Bxd5 {[%emt 0:00:05]} Qxd5 {[%emt 0:00:14]} 17. Qc2 {[%emt 0:00:05]} Rfd8 {[%emt 0:00:13]} 18. Qc4 {[%emt 0:00:42]} Rd7 {[%emt 0:00:35]} 19. Qxd5 {[%emt 0:35:43]} Rxd5 {[%emt 0:00:09]} 20. Rc4 {[%emt 0:00:00]} Kf8 {[%emt 0:00:08]} 21. Rfc1 {[%emt 0:00:00]} Ke8 {[%emt 0:00:49]} 22. f4 {[%emt 0:00:00]} Rad8 {[%emt 0:00:55]} 23. Kf2 {[%emt 0:00:00]} Rd4 {[%emt 0:00:22]} 24. Ke3 {[%emt 0:00:00]} Ke7 {[%emt 0:00:09]} 25. a3 {[%emt 0:00:00]} R4d5 {[%emt 0:00:58]} 26. Ra4 {[%emt 0:00:00]} R8d7 {[%emt 0:00:21]} 27. Rac4 {[%emt 0:00:00]} Rd8 {[%emt 0:00:09]} 28. Kf3 {[%emt 0:00:00]} f5 {[%emt 0:00:33]} 29. h3 {[%emt 0:00:00]} h6 {[%emt 0:01:07]} 30. h4 {[%emt 0:00:00]} h5 {[%emt 0:02:00]} 31. R1c2 {[%emt 0:00:00]} Kf6 {[%emt 0:00:15]} 32. Ra4 {[%emt 0:00:00]} R8d7 {[%emt 0:00:10]} 33. Ra6 {[%emt 0:00:00]} e5 {[%emt 0:00:44]} 34. a4 {[%emt 0:00:00]} R5d6 {[%emt 0:01:38]} 35. a5 {[%emt 0:00:00]} Ke6 {[%emt 0:00:27]} 36. fxe5 {[%emt 0:00:00]} Kxe5 {[%emt 0:00:21]} 37. Rc4 {[%emt 0:00:00]} g6 {[%emt 0:01:42]} 38. axb6 {[%emt 0:00:00]} axb6 {[%emt 0:00:20]} 39. b4 {[%emt 0:00:00]} cxb4 {[%emt 0:01:15]} 40. Rxb4 {[%emt 0:00:00]} Rb7 {[%emt 0:00:11]} 41. Rb5+ {[%emt 0:00:00]} Kf6 {[%emt 0:00:11]} 42. Ra8 {[%emt 0:00:00]} Rdd7 {[%emt 0:00:39]} 43. Rc8 {[%emt 0:00:00]} Rd6 {[%emt 0:00:05]} 44. Kf4 {[%emt 0:00:00]} Rd4+ {[%emt 0:00:15]} 45. e4 {[%emt 0:00:00]} Rxd3 {[%emt 0:02:27]} 46. Rc6+ {[%emt 0:00:35]} Kf7 {[%emt 0:00:24]} 47. exf5 {[%emt 0:00:53]} Rd4+ {[%emt 0:00:12]} 48. Kg5 {[%emt 0:01:40]} Rg4+ {[%emt 0:00:17]} 49. Kh6 {[%emt 0:00:03]} gxf5 {[%emt 0:00:21]} 50. Rxf5+ {[%emt 0:00:04]} Ke8 {[%emt 0:00:31]} 51. Rc3 {[%emt 0:03:13]} Rbg7 {[%emt 0:01:32]} 52. Rg5 {[%emt 0:04:52]} R7xg5 {[%emt 0:00:25]} 53. hxg5 {[%emt 0:00:01]} h4 {[%emt 0:01:02]} 54. gxh4 {[%emt 0:00:04]} Rxh4+ {[%emt 0:00:04]} 55. Kg7 {[%emt 0:00:03]} Rg4 {[%emt 0:01:29]} 56. g6 {[%emt 0:00:06]} Kd7 {[%emt 0:00:19]} 57. Rf3 {[%emt 0:01:20]} Kc6 {[%emt 0:01:21]} 58. Rf5 {[%emt 0:00:05]} b5 {[%emt 0:00:21]} 59. Kf6 {[%emt 0:00:31]} b4 {[%emt 0:14:43]} 60. Rf3 {[%emt 0:04:14]} Kc5 {[%emt 0:00:37]} 61. g7 {[%emt 0:00:52]} Rxg7 {[%emt 0:00:56]} 62. Kxg7 {[%emt 0:00:02]} Kc4 {[%emt 0:00:07]} 63. Kf6 {[%emt 0:00:12]} b3 {[%emt 0:00:04]} 64. Ke5 {[%emt 0:00:34]} b2 {[%emt 0:00:03]} 65. Rf1 {[%emt 0:00:07]} Kc3 {[%emt 0:00:05]} 66. Ke4 {[%emt 0:00:13]} Kc2 {[%emt 0:00:03]} 1/2-1/2

[Event "Moscow Youth U19 2019"]
[Site "Moscow"]
[Date "2019.11.21"]
[Round "4.2"]
[White "Usov, Aleksandr E."]
[Black "Pavlov, Danila"]
[Result "0-1"]
[ECO "C06"]
[WhiteElo "1930"]
[BlackElo "2369"]
[Annotator "ChessBase"]
[PlyCount "70"]
[EventDate "2019.11.18"]
[EventType "swiss"]
[EventCountry "RUS"]
[SourceTitle "playchess.com"]
[Source "ChessBase"]
[SourceQuality "1"]
[TimeControl "5400+30"]

1. e4 {[%emt 0:00:00]} e6 {[%emt 0:00:00]} 2. d4 {[%emt 0:00:00]} d5 {[%emt 0:00:00]} 3. Nd2 {[%emt 0:00:00]} Nf6 {[%emt 0:00:00]} 4. e5 {[%emt 0:00:00]} Nfd7 {[%emt 0:00:00]} 5. c3 {[%emt 0:00:00]} c5 {[%emt 0:00:00]} 6. Bd3 {[%emt 0:00:04]} Nc6 {[%emt 0:00:00]} 7. Ngf3 {[%emt 0:00:06]} Qb6 {[%emt 0:00:00]} 8. O-O {[%emt 0:00:20]} cxd4 {[%emt 0:00:00]} 9. cxd4 {[%emt 0:00:09]} Nxd4 {[%emt 0:00:03]} 10. Nxd4 {[%emt 0:00:12]} Qxd4 {[%emt 0:00:04]} 11. Nf3 {[%emt 0:00:30]} Qb6 {[%emt 0:00:03]} 12. a3 {[%emt 0:00:33]} Nc5 {[%emt 0:01:12]} 13. Bc2 {[%emt 0:08:58]} a5 {[%emt 0:00:04]} 14. Rb1 {[%emt 0:02:14]} a4 {[%emt 0:00:20]} 15. Be3 {[%emt 0:00:06]} Bd7 {[%emt 0:00:09]} 16. Nd4 {[%emt 0:02:00]} Rc8 {[%emt 0:15:35]} 17. Qe2 {[%emt 0:02:01]} Be7 {[%emt 0:22:47]} 18. f4 {[%emt 0:01:12]} g6 {[%emt 0:00:43]} 19. g4 {[%emt 0:04:21]} Qa6 {[%emt 0:05:04]} 20. Qf3 {[%emt 0:06:12]} h5 {[%emt 0:02:18]} 21. h3 {[%emt 0:06:56]} hxg4 {[%emt 0:00:24]} 22. hxg4 {[%emt 0:00:06]} Bb5 {[%emt 0:12:01]} 23. Rfc1 {[%emt 0:09:54]} Kd7 {[%emt 0:01:47]} 24. Nxb5 {[%emt 0:04:38]} Qxb5 {[%emt 0:00:05]} 25. Bd4 {[%emt 0:03:31]} Nb3 {[%emt 0:10:08]} 26. Bxb3 {[%emt 0:00:25]} axb3 {[%emt 0:00:08]} 27. Rc3 {[%emt 0:03:11]} Rxc3 {[%emt 0:00:16]} 28. Bxc3 {[%emt 0:00:20]} Qc4 {[%emt 0:02:38]} 29. Kg2 {[%emt 0:04:37]} Bc5 {[%emt 0:06:38]} 30. Rd1 {[%emt 0:03:48]} b6 {[%emt 0:02:26]} 31. Kg3 {[%emt 0:04:51]} Kc7 {[%emt 0:04:30]} 32. Rc1 {[%emt 0:12:10]} Kb7 {[%emt 0:02:06]} 33. Bd2 {[%emt 0:04:52]} Qd4 {[%emt 0:00:36]} 34. Rd1 {[%emt 0:01:15]} Qxb2 {[%emt 0:00:42]} 35. Bc3 {[%emt 0:01:13]} Qh2# {[%emt 0:00:05]} 0-1

[Event "Moscow Youth U19 2019"]
[Site "Moscow"]
[Date "2019.11.21"]
[Round "4.3"]
[White "Fedorov, Nikita"]
[Black "Yeritsyan, Aram"]
[Result "1-0"]
[ECO "A45"]
[WhiteElo "2133"]
[BlackElo "2276"]
[Annotator "ChessBase"]
[PlyCount "55"]
[EventDate "2019.11.18"]
[EventType "swiss"]
[EventCountry "RUS"]
[SourceTitle "playchess.com"]
[Source "ChessBase"]
[SourceQuality "1"]
[TimeControl "5400+30"]

1. d4 {[%emt 0:00:00]} e6 {[%emt 0:00:00]} 2. Bf4 {[%emt 0:00:00]} c5 {[%emt 0:08:31]} 3. e3 {[%emt 0:00:02]} Nf6 {[%emt 0:01:37]} 4. c3 {[%emt 0:00:06]} cxd4 {[%emt 0:01:16]} 5. cxd4 {[%emt 0:02:11]} Bb4+ {[%emt 0:00:47]} 6. Nd2 {[%emt 0:05:00]} Ne4 {[%emt 0:06:55]} 7. Ngf3 {[%emt 0:00:31]} g5 {[%emt 0:01:15]} 8. Bxb8 {[%emt 0:00:16]} Nxd2 {[%emt 0:00:54]} 9. Nxd2 {[%emt 0:00:07]} Rxb8 {[%emt 0:00:18]} 10. a3 {[%emt 0:01:16]} Be7 {[%emt 0:00:35]} 11. Qh5 {[%emt 0:19:16]} b5 {[%emt 0:02:54]} 12. Bd3 {[%emt 0:03:20]} Qa5 {[%emt 0:03:21]} 13. Ke2 {[%emt 0:03:54]} Bb7 {[%emt 0:03:31]} 14. Rhc1 {[%emt 0:06:33]} h6 {[%emt 0:06:14]} 15. b4 {[%emt 0:11:23]} Qb6 {[%emt 0:59:22]} 16. Be4 {[%emt 0:04:42]} Bc8 {[%emt 0:06:45]} 17. Nf3 {[%emt 0:06:12]} d6 {[%emt 0:04:29]} 18. Rc2 {[%emt 0:06:47]} Bd7 {[%emt 0:06:25]} 19. Rac1 {[%emt 0:00:32]} Qa6 {[%emt 0:07:30]} 20. Rc3 {[%emt 0:17:20]} Kf8 {[%emt 0:11:11]} 21. Rc7 {[%emt 0:01:33]} Be8 {[%emt 0:01:38]} 22. Bc6 {[%emt 0:00:55]} Qxa3 {[%emt 0:02:40]} 23. Bxe8 {[%emt 0:00:08]} Rxe8 {[%emt 0:00:08]} 24. Nxg5 {[%emt 0:00:27]} Qb2+ {[%emt 0:02:15]} 25. Kf3 {[%emt 0:01:32]} Rh7 {[%emt 0:00:43]} 26. Nxh7+ {[%emt 0:00:06]} Kg7 {[%emt 0:00:02]} 27. Nf6 {[%emt 0:00:34]} Kxf6 {[%emt 0:01:02]} 28. Qxh6+ {[%emt 0:00:07]} 1-0